fUSD/lending_fUSD_20250609
["ID","MTS","AMOUNT","RATE_DAILY","PERIOD"]
[365150793,1749496247280,-523.24,0.00019178,2]
[365150795,1749496247291,-490.0,0.00019178,2]
[365150797,1749496247301,-490.0,0.00019178,2]
[365150799,1749496247311,-490.0,0.00019178,2]
[365150801,1749496247321,-508.51458641,0.00019178,2]
[365150803,1749496247330,-490.0,0.00019178,2]
[365150805,1749496247340,-623.0,0.00019178,2]
[365150807,1749496247350,-490.0,0.00019178,2]
[365150809,1749496247360,-490.0,0.00019178,2]
[365150811,1749496247370,-500.0,0.00019178,2]
[365150813,1749496247379,-490.0,0.00019178,2]
[365150815,1749496247389,-490.0,0.00019178,2]
[365150817,1749496247400,-500.0,0.00019178,2]
[365150819,1749496247409,-490.0,0.00019178,2]
[365150821,1749496247420,-517.53754856,0.00019178,2]
[365150823,1749496247430,-705.23,0.00019178,2]
[365150825,1749496247440,-490.0,0.00019178,2]
[365150828,1749496247450,-670.65,0.00019178,2]
[365150829,1749496247459,-490.0,0.00019178,2]
[365150831,1749496247469,-490.0,0.00019178,2]
[365150834,1749496247479,-490.0,0.00019178,2]
[365150836,1749496247488,-490.0,0.00019178,2]
[365150838,1749496247498,-490.0,0.00019178,2]
[365150839,1749496247507,-1035.73,0.00019178,2]
[365150841,1749496247518,-490.0,0.00019178,2]
[365150843,1749496247528,-480.0,0.00019178,2]
[365150845,1749496247539,-458.21756364,0.00019178,2]
[365150847,1749496247549,-490.0,0.00019178,2]
[365150850,1749496247559,-809.67,0.00019178,2]
[365150851,1749496247569,-490.0,0.00019178,2]
[365150853,1749496247578,-1244.65,0.00019178,2]
[365150855,1749496247588,-490.0,0.00019178,2]
[365150857,1749496247598,-480.0,0.00019178,2]
[365150859,1749496247607,-490.0,0.00019178,2]
[365150861,1749496247618,-490.0,0.00019178,2]
[365150863,1749496247628,-490.0,0.00019178,2]
[365150865,1749496247638,-774.22,0.00019178,2]
[365150867,1749496247649,-1331.56,0.00019178,2]
[365150869,1749496247659,-490.0,0.00019178,2]
[365150871,1749496247668,-177.040968,0.00019178,2]
[365150873,1749496247678,-177.040968,0.00019178,2]
[365150875,1749496247687,-448.20693039,0.00019178,2]
[365150877,1749496247696,-490.0,0.00019178,2]
[365150879,1749496247706,-177.040968,0.00019178,2]
[365150881,1749496247716,-490.0,0.00019178,2]
[365150883,1749496247726,-177.040968,0.00019178,2]
[365150885,1749496247735,-177.040968,0.00019178,2]
[365150887,1749496247745,-177.040968,0.00019178,2]
[365150889,1749496247755,-490.0,0.00019178,2]
[365150891,1749496247765,-151.0,0.00019178,2]
[365150893,1749496247775,-151.0,0.00019178,2]
[365150895,1749496247785,-1289.85,0.00019178,2]
[365150897,1749496247795,-151.0,0.00019178,2]
[365150899,1749496247805,-490.0,0.00019178,2]
[365150901,1749496247815,-490.0,0.00019178,2]
[365150903,1749496247825,-490.0,0.00019178,2]
[365150905,1749496247834,-490.0,0.00019178,2]
[365150907,1749496247844,-620.52,0.00019178,2]
[365150909,1749496247853,-490.0,0.00019178,2]
[365150911,1749496247863,-452.33226162,0.00019178,2]
[365150913,1749496247873,-490.0,0.00019178,2]
[365150915,1749496247882,-707.56,0.00019178,2]
[365150918,1749496247893,-490.0,0.00019178,2]
[365150920,1749496247903,-657.77,0.00019178,2]
[365150922,1749496247912,-490.0,0.00019178,2]
[365150924,1749496247921,-490.0,0.00019178,2]
[365150926,1749496247931,-579.87,0.00019178,2]
[365150928,1749496247940,-276.897404,0.00019178,2]
[365150930,1749496247950,-490.0,0.00019178,2]
[365150932,1749496247960,-276.897404,0.00019178,2]
[365150934,1749496247969,-276.897404,0.00019178,2]
[365150936,1749496247978,-276.897404,0.00019178,2]
[365150937,1749496247988,-546.56,0.00019178,2]
[365150940,1749496247998,-490.0,0.00019178,2]
[365150942,1749496248008,-490.0,0.00019178,2]
[365150943,1749496248018,-276.897404,0.00019178,2]
[365150946,1749496248028,-276.897404,0.00019178,2]
[365150947,1749496248038,-276.897404,0.00019178,2]
[365150949,1749496248047,-276.897404,0.00019178,2]
[365150951,1749496248057,-460.0,0.00019178,2]
[365150954,1749496248068,-811.27,0.00019178,2]
[365150956,1749496248077,-670.54,0.00019178,2]
[365150958,1749496248088,-480.0,0.00019178,2]
[365150960,1749496248098,-374.801189,0.00019178,2]
[365150962,1749496248108,-490.0,0.00019178,2]
[365150964,1749496248117,-490.0,0.00019178,2]
[365150965,1749496248127,-490.0,0.00019178,2]
[365150967,1749496248143,-490.0,0.00019178,2]
[365150970,1749496248153,-1445.35,0.00019178,2]
[365150972,1749496248163,-490.0,0.00019178,2]
[365150974,1749496248174,-598.64,0.00019178,2]
[365150976,1749496248187,-490.0,0.00019178,2]
[365150978,1749496248196,-490.0,0.00019178,2]
[365150980,1749496248207,-490.0,0.00019178,2]
[365150982,1749496248220,-500.0,0.00019178,2]
[365150984,1749496248230,-1000.0,0.00019178,2]
[365150986,1749496248240,-171.14990908,0.00019178,2]
[365150988,1749496248250,-150.0,0.00019178,2]
[365150990,1749496248259,-1650.72,0.00019178,2]
[365150992,1749496248269,-490.0,0.00019178,2]
[365150994,1749496248279,-150.70260472,0.00019178,2]
[365150996,1749496248289,-490.0,0.00019178,2]
[365150998,1749496248299,-1316.2,0.00019178,2]
[365151000,1749496248308,-490.0,0.00019178,2]
[365151002,1749496248318,-490.0,0.00019178,2]
[365151004,1749496248328,-490.0,0.00019178,2]
[365151006,1749496248338,-490.0,0.00019178,2]
[365151008,1749496248348,-151.0,0.00019178,2]
[365151010,1749496248358,-151.0,0.00019178,2]
[365151012,1749496248367,-151.0,0.00019178,2]
[365151014,1749496248378,-490.0,0.00019178,2]
[365151016,1749496248388,-1518.09,0.00019178,2]
[365151019,1749496248399,-996.83702851,0.00019178,2]
[365151021,1749496248417,-92.16297149,0.00019178,2]
[365151024,1749496248427,-490.0,0.00019178,2]
[365151026,1749496248437,-490.0,0.00019178,2]
[365151028,1749496248447,-480.0,0.00019178,2]
[365151029,1749496248456,-173.83702848,0.00019178,2]
[365151042,1749496248569,-316.16297152,0.00019178,2]
[365151044,1749496248580,-490.0,0.00019178,2]
[365151046,1749496248592,-490.0,0.00019178,2]
[365151048,1749496248602,-150.0,0.00019178,2]
[365151050,1749496248612,-490.0,0.00019178,2]
[365151052,1749496248623,-201.14694014,0.00019178,2]
[365151054,1749496248633,-743.02,0.00019178,2]
[365151056,1749496248644,-653.55,0.00019178,2]
[365151058,1749496248655,-480.0,0.00019178,2]
[365151060,1749496248665,-236.962682,0.00019178,2]
[365151062,1749496248675,-490.0,0.00019178,2]
[365151064,1749496248684,-764.19,0.00019178,2]
[365151066,1749496248694,-480.0,0.00019178,2]
[365151068,1749496248705,-1114.69,0.00019178,2]
[365151070,1749496248715,-3974.37,0.00019178,2]
[365151072,1749496248726,-490.0,0.00019178,2]
[365151074,1749496248736,-490.0,0.00019178,2]
[365151076,1749496248746,-664.12,0.00019178,2]
[365151078,1749496248757,-1104.74,0.00019178,2]
[365151080,1749496248767,-492.65,0.00019178,2]
[365151082,1749496248777,-490.0,0.00019178,2]
[365151084,1749496248789,-490.0,0.00019178,2]
[365151086,1749496248799,-490.0,0.00019178,2]
[365151088,1749496248808,-490.0,0.00019178,2]
[365151090,1749496248818,-780.52,0.00019178,2]
[365151092,1749496248827,-3116.3,0.00019178,2]
[365151094,1749496248837,-490.0,0.00019178,2]
[365151096,1749496248847,-225.233648,0.00019178,2]
[365151098,1749496248857,-435.730028,0.00019178,2]
[365151100,1749496248867,-435.730028,0.00019178,2]
[365151102,1749496248877,-490.0,0.00019178,2]
[365151104,1749496248887,-435.730028,0.00019178,2]
[365151106,1749496248896,-490.0,0.00019178,2]
[365151108,1749496248906,-1524.53,0.00019178,2]
[365151110,1749496248916,-1445.91,0.00019178,2]
[365151112,1749496248926,-435.730028,0.00019178,2]
[365151114,1749496248935,-435.730028,0.00019178,2]
[365151116,1749496248945,-518.83,0.00019178,2]
[365151118,1749496248955,-435.730028,0.00019178,2]
[365151120,1749496248964,-151.0,0.00019178,2]
[365151122,1749496248974,-152.041317,0.00019178,2]
[365151124,1749496248983,-490.0,0.00019178,2]
[365151126,1749496248993,-489.66624717,0.00019178,2]
[365151128,1749496249002,-490.0,0.00019178,2]
[365151130,1749496249012,-253.713125,0.00019178,2]
[365151132,1749496249021,-230.27866346,0.00019178,2]
[365151134,1749496249031,-253.713125,0.00019178,2]
[365151136,1749496249042,-746.46,0.00019178,2]
[365151138,1749496249053,-2819.95,0.00019178,2]
[365151139,1749496249062,-1088.20207434,0.00019178,2]
[365151140,1749496249076,-608.55792566,0.00019178,2]
[365151141,1749496249086,-253.713125,0.00019178,2]
[365151142,1749496249095,-490.0,0.00019178,2]
[365151143,1749496249104,-1263.23,0.00019178,2]
[365151144,1749496249113,-490.0,0.00019178,2]
[365151145,1749496249122,-697.18,0.00019178,2]
[365151146,1749496249132,-253.713125,0.00019178,2]
[365151148,1749496249144,-490.0,0.00019178,2]
[365151150,1749496249154,-253.713125,0.00019178,2]
[365151152,1749496249164,-253.713125,0.00019178,2]
[365151154,1749496249175,-490.0,0.00019178,2]
[365151156,1749496249186,-480.0,0.00019178,2]
[365151158,1749496249196,-2236.5,0.00019178,2]
[365151160,1749496249206,-490.0,0.00019178,2]
[365151162,1749496249218,-506.43,0.00019178,2]
[365151164,1749496249229,-498.55337311,0.00019178,2]
[365151166,1749496249239,-490.0,0.00019178,2]
[365151168,1749496249249,-490.0,0.00019178,2]
[365151170,1749496249259,-1204.3,0.00019178,2]
[365151172,1749496249270,-490.0,0.00019178,2]
[365151174,1749496249280,-1243.13,0.00019178,2]
[365151176,1749496249290,-150.0,0.00019178,2]
[365151178,1749496249300,-480.0,0.00019178,2]
[365151180,1749496249311,-460.0,0.00019178,2]
[365151182,1749496249321,-490.0,0.00019178,2]
[365151184,1749496249330,-809.17,0.00019178,2]
[365151186,1749496249340,-3102.0,0.00019178,2]
[365151188,1749496249350,-307.299076,0.00019178,2]
[365151190,1749496249359,-307.299076,0.00019178,2]
[365151192,1749496249369,-1580.36,0.00019178,2]
[365151194,1749496249378,-307.299076,0.00019178,2]
[365151196,1749496249387,-490.0,0.00019178,2]
[365151198,1749496249397,-956.67,0.00019178,2]
[365151200,1749496249407,-801.12,0.00019178,2]
[365151202,1749496249417,-480.0,0.00019178,2]
[365151204,1749496249426,-307.299076,0.00019178,2]
[365151206,1749496249436,-307.299076,0.00019178,2]
[365151208,1749496249446,-307.299076,0.00019178,2]
[365151209,1749496249456,-263.76350653,0.00019178,2]
[365151212,1749496249466,-490.0,0.00019178,2]
[365151213,1749496249475,-490.0,0.00019178,2]
[365151215,1749496249484,-671.15,0.00019178,2]
[365151217,1749496249494,-430.0,0.00019178,2]
[365151219,1749496249503,-999.6,0.00019178,2]
[365151221,1749496249512,-799.54,0.00019178,2]
[365151223,1749496249522,-490.0,0.00019178,2]
[365151225,1749496249531,-490.0,0.00019178,2]
[365151227,1749496249541,-150.0,0.00019178,2]
[365151229,1749496249551,-1376.64,0.00019178,2]
[365151231,1749496249561,-490.0,0.00019178,2]
[365151233,1749496249570,-500.0,0.00019178,2]
[365151235,1749496249580,-1133.9,0.00019178,2]
[365151237,1749496249590,-490.0,0.00019178,2]
[365151239,1749496249600,-151.0,0.00019178,2]
[365151241,1749496249610,-290.207164,0.00019178,2]
[365151243,1749496249619,-480.0,0.00019178,2]
[365151245,1749496249629,-151.0,0.00019178,2]
[365151247,1749496249638,-2467.59,0.00019178,2]
[365151257,1749496249722,-151.0,0.00019178,2]
[365151259,1749496249732,-499.91,0.00019178,2]
[365151261,1749496249741,-859.01,0.00019178,2]
[365151263,1749496249751,-1367.92,0.00019178,2]
[365151265,1749496249760,-928.39,0.00019178,2]
[365151267,1749496249769,-169.248468,0.00019178,2]
[365151268,1749496249778,-2400.03,0.00019178,2]
[365151270,1749496249788,-490.0,0.00019178,2]
[365151272,1749496249797,-2751.84,0.00019178,2]
[365151274,1749496249806,-490.0,0.00019178,2]
[365151276,1749496249816,-493.98,0.00019178,2]
[365151278,1749496249825,-151.0,0.00019178,2]
[365151280,1749496249834,-151.0,0.00019178,2]
[365151282,1749496249844,-375.04887215,0.00019178,2]
[365151284,1749496249853,-151.0,0.00019178,2]
[365151286,1749496249862,-490.0,0.00019178,2]
[365151288,1749496249871,-490.0,0.00019178,2]
[365151290,1749496249880,-490.0,0.00019178,2]
[365151292,1749496249890,-151.0,0.00019178,2]
[365151294,1749496249899,-651.81,0.00019178,2]
[365151296,1749496249909,-151.0,0.00019178,2]
[365151298,1749496249918,-151.0,0.00019178,2]
[365151300,1749496249927,-1206.64,0.00019178,2]
[365151302,1749496249937,-654.02,0.00019178,2]
[365151304,1749496249946,-151.0,0.00019178,2]
[365151306,1749496249955,-1987.92,0.00019178,2]
[365151308,1749496249964,-151.0,0.00019178,2]
[365151310,1749496249973,-151.0,0.00019178,2]
[365151312,1749496249982,-151.0,0.00019178,2]
[365151314,1749496249992,-400.42543664,0.00019178,2]
[365151316,1749496250001,-151.0,0.00019178,2]
[365151318,1749496250011,-151.0,0.00019178,2]
[365151320,1749496250020,-490.0,0.00019178,2]
[365151322,1749496250029,-490.0,0.00019178,2]
[365151324,1749496250039,-1000.0,0.00019178,2]
[365151326,1749496250049,-490.0,0.00019178,2]
[365151328,1749496250058,-490.0,0.00019178,2]
[365151330,1749496250067,-1729.5,0.00019178,2]
[365151332,1749496250076,-490.0,0.00019178,2]
[365151334,1749496250086,-490.0,0.00019178,2]
[365151336,1749496250095,-490.0,0.00019178,2]
[365151338,1749496250104,-490.0,0.00019178,2]
[365151340,1749496250113,-490.0,0.00019178,2]
[365151342,1749496250123,-720.55,0.00019178,2]
[365151344,1749496250132,-816.53,0.00019178,2]
[365151346,1749496250146,-531.92,0.00019178,2]
[365151348,1749496250155,-490.0,0.00019178,2]
[365151350,1749496250164,-728.03,0.00019178,2]
[365151352,1749496250173,-1261.07,0.00019178,2]
[365151354,1749496250183,-490.0,0.00019178,2]
[365151356,1749496250193,-1971.96052949,0.00019178,2]
[365151413,1749496250724,204.0,0.00017659,2]
[365151465,1749496251298,-204.0,0.00018982,3]
[365151467,1749496251309,-1955.38947051,0.00019178,2]
[365151469,1749496251319,-490.0,0.00019178,2]
[365151471,1749496251328,-480.0,0.00019178,2]
[365151473,1749496251338,-168.262634,0.00019178,2]
[365151475,1749496251347,-420.0,0.00019178,2]
[365151477,1749496251357,-168.262634,0.00019178,2]
[365151479,1749496251366,-168.262634,0.00019178,2]
[365151481,1749496251375,-999.89,0.00019178,2]
[365151483,1749496251385,-490.0,0.00019178,2]
[365151485,1749496251394,-681.96,0.00019178,2]
[365151486,1749496251403,-490.0,0.00019178,2]
[365151488,1749496251413,-770.86,0.00019178,2]
[365151490,1749496251422,-168.262634,0.00019178,2]
[365151492,1749496251432,-1507.68,0.00019178,2]
[365151494,1749496251442,-747.62,0.00019178,2]
[365151496,1749496251451,-168.262634,0.00019178,2]
[365151498,1749496251461,-1129.589132,0.00019178,2]
[365151500,1749496251471,-168.262634,0.00019178,2]
[365151502,1749496251480,-1129.589132,0.00019178,2]
[365151504,1749496251490,-490.0,0.00019178,2]
[365151506,1749496251499,-1129.589132,0.00019178,2]
[365151508,1749496251509,-1169.84474386,0.00019178,2]
[365151511,1749496251521,-1284.25004,0.00019178,2]
[365151513,1749496251532,-517.83521614,0.00019178,2]
[365151515,1749496251541,-490.0,0.00019178,2]
[365151517,1749496251551,-490.0,0.00019178,2]
[365151519,1749496251560,-1129.589132,0.00019178,2]
[365151521,1749496251569,-1129.589132,0.00019178,2]
[365151523,1749496251578,-1078.98651986,0.00019178,2]
[365151525,1749496251590,-50.60261214,0.00019178,2]
[365151527,1749496251599,-1010.9,0.00019178,2]
[365151529,1749496251609,-490.0,0.00019178,2]
[365151531,1749496251618,-490.0,0.00019178,2]
[365151533,1749496251627,-490.0,0.00019178,2]
[365151535,1749496251636,-680.41,0.00019178,2]
[365151537,1749496251645,-520.85,0.00019178,2]
[365151539,1749496251655,-490.0,0.00019178,2]
[365151541,1749496251664,-1066.72,0.00019178,2]
[365151543,1749496251674,-9924.35183074,0.00019178,2]
[365151564,1749496251875,-369.38144772,0.00019178,2]
[365151569,1749496251908,303.86324161,0.0001801,2]
[365151581,1749496252021,-1917.5549425,0.00019178,2]
[365151586,1749496252058,-7133.05177904,0.00019178,2]
[365151587,1749496252068,-647.19,0.00019178,2]
[365151588,1749496252079,-577.7,0.00019178,2]
[365151589,1749496252089,-490.0,0.00019178,2]
[365151590,1749496252099,-490.0,0.00019178,2]
[365151591,1749496252109,-974.88,0.00019178,2]
[365151592,1749496252119,-618.02891236,0.00019178,2]
[365151594,1749496272109,200.0,0.00017659,2]
[365151595,1749496300659,744.22565276,0.00024657,120]
[365151596,1749496444320,169.85,0.00014544,2]
[365151597,1749496555821,383.31,0.00013699,2]
[365151599,1749496846813,1054.36,0.0001612,2]
[365151600,1749496979544,571.0,0.0002465,120]
[365151601,1749496991497,500.0,0.00015991,2]
[365151602,1749496994623,2000.0,0.0001599,2]
[365151603,1749496995455,2000.0,0.00015991,2]
[365151604,1749496995820,2000.0,0.00015991,2]
[365151605,1749497002403,500.0,0.00015991,2]
[365151606,1749497008830,200.0,0.00015991,2]
[365151607,1749497031055,1063.0,0.00024658,120]
[365151608,1749497036813,13670.63,0.00018011,2]
[365151609,1749497173919,777.12,0.00017982,2]
[365151610,1749497174983,1000.0,0.00017978,2]
[365151612,1749497291694,204.0,0.00017305,2]
[365151618,1749497302450,250.0,0.00017815,2]
[365151622,1749497321534,200.0,0.00017305,2]
[365151628,1749497431695,-210.88,0.00018017,2]
[365151629,1749497431705,-300.0,0.00018036,2]
[365151630,1749497431715,-250.0,0.00018055,2]
[365151631,1749497431728,-300.0,0.00018095,2]
[365151632,1749497431738,-174.12265401,0.0001817,2]
[365151633,1749497431748,-150.0,0.0001817,7]
[365151634,1749497431757,-6528.69,0.00018179,2]
[365151635,1749497431767,-1200.0,0.00018195,2]
[365151636,1749497431777,-190.0,0.00018199,2]
[365151637,1749497431786,-2119.9659411,0.000182,2]
[365151638,1749497431807,-6523.95595416,0.000182,2]
[365151639,1749497431857,-3853.81810474,0.000182,2]
[365151640,1749497431867,-151.0,0.00018217,2]
[365151641,1749497431876,-703.70783781,0.00018217,2]
[365151642,1749497431888,-296.29216219,0.00018217,2]
[365151643,1749497431898,-490.70783781,0.00018217,2]
[365151644,1749497431910,-326.15,0.00018217,2]
[365151645,1749497431926,-718.23489681,0.00018217,2]
[365151646,1749497431937,-422.76326538,0.00018217,2]
[365151647,1749497431947,-207.4,0.00018217,2]
[365151648,1749497431957,-401.63673462,0.00018244,2]
[365151662,1749497437723,-98.36326538,0.00018244,2]
[365151663,1749497437741,-124.58540468,0.00018272,2]
[365151664,1749497437759,-1495.95978762,0.00018272,2]
[365151665,1749497437774,-409.7514797,0.00018272,2]
[365151666,1749497437786,-2105.41764886,0.00018327,2]
[365151667,1749497437798,-12.63763963,0.00018382,2]
[365151668,1749497437837,-480.0,0.00018382,2]
[365151943,1749497440658,-256.55416432,0.00018382,2]
[365151945,1749497440671,-1434.12629792,0.00018382,2]
[365151947,1749497440684,-190.91370208,0.00018384,2]
[365152141,1749497442652,-863.44629792,0.00018384,2]
[365152143,1749497442664,-2067.19052155,0.00018437,2]
[365152146,1749497442678,-196.91035009,0.00018437,2]
[365152148,1749497442690,-1302.84564991,0.00018492,2]
[365152151,1749497442709,-1045.02695398,0.00018492,2]
[365152153,1749497442720,-796.76,0.000185,2]
[365152155,1749497442735,-796.76,0.000185,2]
[365152157,1749497442746,-372.42624137,0.00018547,2]
[365152160,1749497442759,-870.7,0.00018547,2]
[365152438,1749497445679,-922.00791521,0.00018547,2]
[365152442,1749497445787,-269.60973366,0.00018547,2]
[365152445,1749497445799,-1549.4598812,0.00018597,2]
[365152447,1749497445811,-204.0,0.00018599,3]
[365152449,1749497445823,-405.0,0.00018599,2]
[365152451,1749497445834,-796.76,0.000186,2]
[365152453,1749497445845,-200.0,0.000186,6]
[365152455,1749497445857,-2524.82941417,0.00018602,2]
[365152457,1749497445869,-2618.2481025,0.00018657,2]
[365152460,1749497445880,-500.0,0.000187,6]
[365152462,1749497445893,-2715.12328229,0.00018712,2]
[365152464,1749497445904,-1163.41,0.00018766,2]
[365152466,1749497445915,-2326.82,0.00018766,2]
[365152469,1749497445927,-1163.41,0.00018766,2]
[365152471,1749497445940,-1163.41,0.00018766,2]
[365152473,1749497445953,-2815.58284373,0.00018767,2]
[365152475,1749497445964,-562.192853,0.00018794,2]
[365152477,1749497445977,-1163.41,0.000188,2]
[365152479,1749497445989,-796.43678735,0.000188,6]
[365152547,1749497446947,-3.56321265,0.000188,6]
[365152548,1749497446957,-736.03879228,0.00018849,2]
[365152549,1749497446966,-1100.0,0.000189,6]
[365152550,1749497446977,-1000.0,0.000189,2]
[365152551,1749497446987,-268.04615245,0.000189,2]
[365152552,1749497446998,-31.62504202,0.000189,2]
[365152553,1749497447008,-736.03879228,0.00018932,2]
[365152554,1749497447017,-299.67119418,0.00018934,2]
[365152555,1749497447027,-1111.17,0.00018946,2]
[365152556,1749497447037,-1111.12,0.0001896,2]
[365152557,1749497447046,-299.67119418,0.00018969,2]
[365152558,1749497447055,-250.96944193,0.00018999,2]
[365152559,1749497447065,-500.0,0.00018999,2]
[365152560,1749497447075,-244.52815863,0.00018999,2]
[365152561,1749497447084,-208.44871211,0.00018999,2]
[365152562,1749497447094,-60182.49953288,0.00019,2]
[365152563,1749497447105,-933.44346324,0.00019,2]
[365152564,1749497447127,-1626.35553558,0.00019,2]
[365152565,1749497447138,-83950.1730781,0.00019,2]
[365152566,1749497447147,-50000.0,0.00019,2]
[365152567,1749497447158,-250.0,0.00019,2]
[365152568,1749497447167,-299.67119418,0.00019003,2]
[365152569,1749497447176,-736.03879228,0.00019014,2]
[365152570,1749497447187,-299.67119418,0.00019038,2]
[365152571,1749497447197,-796.76,0.00019041,2]
[365152572,1749497447206,-796.76,0.00019041,2]
[365152573,1749497447217,-796.76,0.00019041,2]
[365152574,1749497447226,-796.01,0.00019041,2]
[365152575,1749497447236,-795.51,0.00019041,2]
[365152576,1749497447247,-796.76,0.00019041,2]
[365152577,1749497447256,-796.76,0.00019041,2]
[365152578,1749497447265,-796.76,0.00019041,2]
[365152579,1749497447275,-795.76,0.00019041,2]
[365152580,1749497447285,-1111.12,0.0001905,2]
[365152581,1749497447294,-736.03879228,0.00019068,2]
[365152582,1749497447303,-299.67119418,0.00019072,2]
[365152583,1749497447312,-1059.49114126,0.00019076,2]
[365152584,1749497447321,-281.53057439,0.00019078,2]
[365152585,1749497447331,-176.69306353,0.00019078,2]
[365152586,1749497447340,-1059.49114114,0.00019087,2]
[365152587,1749497447349,-1059.49114114,0.00019098,2]
[365152588,1749497447358,-1060.846,0.00019099,2]
[365152589,1749497447368,-1111.12,0.000191,2]
[365152590,1749497447377,-299.67119418,0.00019107,2]
[365152591,1749497447386,-1059.49114114,0.00019109,2]
[365152592,1749497447396,-1059.49114114,0.0001912,2]
[365152593,1749497447405,-1059.49114114,0.00019132,2]
[365152594,1749497447415,-299.67119418,0.00019141,2]
[365152595,1749497447424,-1059.49114114,0.00019143,2]
[365152596,1749497447435,-161.63188426,0.00019146,2]
[365152597,1749497447444,-736.03879228,0.00019151,2]
[365152598,1749497447453,-1059.49114114,0.00019154,2]
[365152599,1749497447463,-1059.49114114,0.00019165,2]
[365152600,1749497447472,-281.53057439,0.00019169,2]
[365152601,1749497447482,-500.0,0.00019173,2]
[365152602,1749497447491,-500.0,0.00019173,2]
[365152603,1749497447500,-505.02490821,0.00019173,2]
[365152604,1749497447509,-567.09926448,0.00019173,2]
[365152605,1749497447519,-500.0,0.00019173,2]
[365152606,1749497447528,-500.0,0.00019173,2]
[365152607,1749497447537,-500.0,0.00019173,2]
[365152608,1749497447547,-500.0,0.00019173,2]
[365152609,1749497447556,-178.16615542,0.00019173,2]
[365152610,1749497447566,-294.3998771,0.00019173,2]
[365152611,1749497447575,-177.72026855,0.00019173,2]
[365152612,1749497447584,-500.0,0.00019173,2]
[365152613,1749497447594,-175.32328123,0.00019173,2]
[365152614,1749497447603,-500.0,0.00019173,2]
[365152615,1749497447613,-500.0,0.00019173,2]
[365152616,1749497447623,-12543.156577,0.00019173,2]
[365152617,1749497447633,-79324.1677945,0.00019174,2]
[365152618,1749497447643,-104896.16131996,0.00019174,2]
[365152619,1749497447667,-378.392,0.00019174,2]
[365152621,1749497977755,1030.99,0.00016227,2]
[365152622,1749498011843,204.0,0.00017893,2]
[365152623,1749498015829,943.5552265,0.00024658,120]
[365152624,1749498100900,401.32,0.00013699,2]
[365152638,1749498631767,-250.0,0.00018074,2]
[365152639,1749498631776,-293.0,0.00018075,2]
[365152640,1749498631787,-7.0,0.00018075,2]
[365152641,1749498631796,-300.0,0.00018076,2]
[365152642,1749498631806,-80.5,0.00018079,2]
[365152643,1749498631976,-919.5,0.00018079,2]
[365152644,1749498631986,-300.0,0.00018087,2]
[365152645,1749498631995,-167.09,0.000181,2]
[365152646,1749498632006,-978.3,0.00018105,2]
[365152647,1749498632015,-210.88,0.00018143,2]
[365152648,1749498632025,-204.0,0.00018168,2]
[365152649,1749498632036,-200.0,0.00018168,2]
[365152650,1749498632045,-150.0,0.00018204,7]
[365152651,1749498632055,-1200.0,0.00018479,2]
[365152652,1749498632065,-1108.59106,0.0001848,2]
[365153113,1749498637735,-849.26494,0.0001848,2]
[365153114,1749498637745,-207.4,0.0001848,2]